[Event "Open NK Rapid 2025 bord 26-50"]
[Site "Helmond, Netherlands"]
[Date "2025.05.03"]
[Round "8.3"]
[White "Ritzerveld, Noah"]
[Black "Koppenens, Oscar"]
[Result "1-0"]
[TimeControl "15 min +5 sec increment"]
[WhiteFideId "1085760"]
[BlackFideId "1087940"]
[WhiteElo "2053"]
[BlackElo "1858"]

1. e4 {[%clk 00:15:09]} c5 {[%clk 00:15:10]} {[%emt 00:00:01]} 2. Nf3 {[%clk
00:15:13]} e6 {[%clk 00:15:05]} {[%emt 00:00:10]} 3. d4 {[%clk 00:15:16]}
{[%emt 00:00:01]} cxd4 {[%clk 00:15:09]} {[%emt 00:00:01]} 4. Nxd4 {[%clk
00:15:21]} Nf6 {[%clk 00:15:14]} 5. Nc3 {[%clk 00:15:25]} d5 {[%clk 00:15:18]}
{[%emt 00:00:01]} 6. exd5 {[%clk 00:14:43]} {[%emt 00:00:46]} exd5 {[%clk
00:15:08]} {[%emt 00:00:15]} 7. Bd3 {[%clk 00:14:15]} {[%emt 00:00:32]} Nc6
{[%clk 00:15:04]} {[%emt 00:00:10]} 8. Nxc6 {[%clk 00:13:21]} {[%emt 00:00:59]}
bxc6 {[%clk 00:15:07]} {[%emt 00:00:02]} 9. O-O {[%clk 00:13:25]} {[%emt
00:00:01]} Bc5 {[%clk 00:14:54]} {[%emt 00:00:18]} 10. Re1+ {[%clk 00:13:01]}
{[%emt 00:00:29]} Be6 {[%clk 00:14:58]} {[%emt 00:00:02]} 11. Qf3 {[%clk
00:12:21]} {[%emt 00:00:44]} O-O {[%clk 00:13:43]} {[%emt 00:01:20]} 12. Bg5
{[%clk 00:12:12]} {[%emt 00:00:13]} Be7 {[%clk 00:13:46]} {[%emt 00:00:03]} 13.
Ne2 {[%clk 00:11:40]} {[%emt 00:00:37]} h6 {[%clk 00:13:35]} {[%emt 00:00:17]}
14. Bh4 {[%clk 00:11:17]} {[%emt 00:00:27]} c5 {[%clk 00:13:34]} {[%emt
00:00:07]} 15. Nf4 {[%clk 00:10:44]} {[%emt 00:00:37]} Qd7 {[%clk 00:12:14]}
{[%emt 00:01:25]} 16. Nxe6 {[%clk 00:09:50]} {[%emt 00:00:59]} fxe6 {[%clk
00:12:15]} {[%emt 00:00:03]} 17. Qh3 {[%clk 00:09:43]} {[%emt 00:00:13]} Rab8
{[%clk 00:11:23]} {[%emt 00:00:58]} 18. Rxe6 {[%clk 00:08:52]} {[%emt
00:00:54]} Rb4 {[%clk 00:06:43]} {[%emt 00:04:47]} 19. Rae1 {[%clk 00:07:07]}
{[%emt 00:01:50]} Bd8 {[%clk 00:06:16]} {[%emt 00:00:31]} 20. Bxf6 {[%clk
00:07:09]} {[%emt 00:00:03]} c4 {[%clk 00:02:28]} {[%emt 00:03:54]} 21. Bxg7
{[%clk 00:05:51]} {[%emt 00:01:22]} Qxg7 {[%clk 00:02:16]} {[%emt 00:00:17]} 22.
Rg6 {[%clk 00:05:53]} {[%emt 00:00:03]} cxd3 {[%clk 00:02:17]} {[%emt
00:00:04]} 23. Qxh6 {[%clk 00:05:16]} {[%emt 00:00:42]} Bf6 {[%clk 00:02:00]}
{[%emt 00:00:22]} 24. Re7 {[%clk 00:05:04]} {[%emt 00:00:18]} Rf7 {[%clk
00:01:47]} {[%emt 00:00:17]} 25. Re8+ {[%clk 00:05:04]} {[%emt 00:00:05]} Rf8
{[%clk 00:01:50]} {[%emt 00:00:02]} 26. Rxf8+ {[%clk 00:05:07]} {[%emt
00:00:03]} Kxf8 {[%clk 00:01:47]} {[%emt 00:00:07]} 27. Rxf6+ {[%clk 00:04:50]}
{[%emt 00:00:22]} Kg8 {[%clk 00:01:44]} {[%emt 00:00:08]} 28. Rg6 {[%clk
00:04:54]} {[%emt 00:00:02]} Rb7 {[%clk 00:01:48]} 29. cxd3 {[%clk 00:04:57]}
{[%emt 00:00:01]} Re7 {[%clk 00:01:50]} {[%emt 00:00:03]} 30. h4 {[%clk
00:04:53]} {[%emt 00:00:10]} Re1+ {[%clk 00:01:44]} {[%emt 00:00:11]} 31. Kh2
{[%emt 00:00:15]} Re7 {[%clk 00:01:40]} 32. Qg5 {[%clk 00:04:44]} {[%emt
00:00:11]} Kf8 {[%clk 00:01:41]} {[%emt 00:00:04]} 33. Rxg7 {[%clk 00:04:43]}
{[%emt 00:00:06]} Re8 {[%clk 00:01:36]} {[%emt 00:00:10]} 34. Rg8+ {[%clk
00:04:10]} {[%emt 00:00:38]} Kf7 {[%clk 00:01:39]} {[%emt 00:00:02]} 35. Qg6+
{[%clk 00:04:14]} {[%emt 00:00:01]} Ke7 {[%clk 00:01:43]} {[%emt 00:00:02]} 36.
Rxe8+ {[%clk 00:04:15]} {[%emt 00:00:03]} Kd7 {[%clk 00:01:47]} {[%emt
00:00:01]} 37. Qe6+ {[%clk 00:04:18]} {[%emt 00:00:02]} Kc7 {[%clk 00:01:51]}
{[%emt 00:00:01]} 38. Rc8+ {[%clk 00:04:20]} {[%emt 00:00:03]} Kb7 {[%clk
00:01:55]} 39. Qd7+ {[%clk 00:04:22]} {[%emt 00:00:03]} Kb6 {[%clk 00:01:57]}
{[%emt 00:00:04]} 40. Rc6+ {[%clk 00:04:25]} Kb5 {[%clk 00:02:01]} {[%emt
00:00:01]} 41. Qxd5+ {[%clk 00:04:28]} {[%emt 00:00:02]} Kb4 {[%clk 00:02:01]}
{[%emt 00:00:04]} 42. h5 {[%clk 00:04:27]} {[%emt 00:00:07]} a6 {[%clk
00:01:55]} {[%emt 00:00:11]} 43. h6 {[%clk 00:04:29]} {[%emt 00:00:03]} a5
{[%clk 00:01:58]} {[%emt 00:00:03]} 44. h7 {[%clk 00:04:30]} {[%emt 00:00:02]}
Ka4 {[%clk 00:01:59]} {[%emt 00:00:04]} 45. h8=N {[%clk 00:04:14]} {[%emt
00:00:22]} Kb4 {[%clk 00:02:01]} {[%emt 00:00:03]} 46. Nf7 {[%clk 00:04:02]}
{[%emt 00:00:17]} Ka4 {[%clk 00:02:03]} {[%emt 00:00:04]} 47. Ne5 {[%clk
00:03:55]} {[%emt 00:00:11]} Kb4 {[%clk 00:02:01]} {[%emt 00:00:08]} 48. Nd7
{[%clk 00:03:56]} {[%emt 00:00:03]} a4 {[%clk 00:02:01]} {[%emt 00:00:05]} 49.
Nb8 {[%clk 00:03:39]} {[%emt 00:00:22]} a3 {[%clk 00:02:01]} {[%emt 00:00:05]}
50. Na6+ {[%clk 00:03:41]} {[%emt 00:00:03]} Ka4 {[%clk 00:02:02]} {[%emt
00:00:03]} 51. b3# {[%clk 00:03:45]} {[%emt 00:00:02]} 1-0

[Event "Open NK Rapid 2025 bord 26-50"]
[Site "Helmond, Netherlands"]
[Date "2025.05.03"]
[Round "8.4"]
[White "Apon, Iwahn"]
[Black "Winter, Sven"]
[Result "0-1"]
[TimeControl "15 min +5 sec increment"]
[WhiteFideId "1056115"]
[BlackFideId "1092375"]
[WhiteElo "1987"]
[BlackElo "1869"]

1. Nf3 {[%clk 00:12:59]} {[%emt 00:02:10]} Nf6 {[%clk 00:15:04]} {[%emt
00:00:07]} 2. c4 {[%clk 00:13:03]} {[%emt 00:00:01]} g6 {[%clk 00:14:39]}
{[%emt 00:00:30]} 3. d4 {[%clk 00:13:07]} {[%emt 00:00:01]} Bg7 {[%clk
00:14:42]} {[%emt 00:00:02]} 4. g3 {[%clk 00:13:11]} O-O {[%clk 00:14:45]}
{[%emt 00:00:03]} 5. Bg2 {[%clk 00:13:15]} d6 {[%clk 00:14:47]} {[%emt
00:00:04]} 6. Nc3 {[%clk 00:13:19]} {[%emt 00:00:01]} Bg4 {[%clk 00:14:41]}
{[%emt 00:00:10]} 7. b3 {[%clk 00:13:21]} {[%emt 00:00:03]} Nbd7 {[%clk
00:14:39]} {[%emt 00:00:08]} 8. Bb2 {[%clk 00:13:24]} {[%emt 00:00:01]} Re8
{[%clk 00:14:32]} {[%emt 00:00:13]} 9. h3 {[%clk 00:13:27]} {[%emt 00:00:02]}
Bxf3 {[%clk 00:14:34]} {[%emt 00:00:03]} 10. Bxf3 {[%clk 00:13:19]} {[%emt
00:00:12]} c6 {[%clk 00:14:37]} {[%emt 00:00:02]} 11. O-O {[%clk 00:13:15]}
{[%emt 00:00:09]} e5 {[%clk 00:14:36]} {[%emt 00:00:06]} 12. dxe5 {[%clk
00:09:02]} {[%emt 00:04:18]} dxe5 {[%clk 00:14:39]} {[%emt 00:00:03]} 13. Qc2
{[%clk 00:08:58]} {[%emt 00:00:09]} Qc7 {[%clk 00:14:35]} {[%emt 00:00:09]} 14.
e4 {[%clk 00:07:23]} {[%emt 00:01:39]} Nf8 {[%clk 00:14:24]} {[%emt 00:00:17]}
15. Rad1 {[%clk 00:07:18]} {[%emt 00:00:09]} Ne6 {[%clk 00:14:24]} {[%emt
00:00:05]} 16. Ne2 {[%clk 00:07:12]} {[%emt 00:00:11]} Rad8 {[%clk 00:14:12]}
{[%emt 00:00:17]} 17. h4 {[%clk 00:06:17]} {[%emt 00:01:00]} h5 {[%clk
00:14:02]} {[%emt 00:00:16]} 18. Bc3 {[%clk 00:06:09]} {[%emt 00:00:13]} c5
{[%clk 00:13:42]} {[%emt 00:00:25]} 19. Qb2 {[%clk 00:05:56]} {[%emt 00:00:18]}
Nd4 {[%clk 00:13:45]} {[%emt 00:00:02]} 20. Kg2 {[%clk 00:05:35]} {[%emt
00:00:26]} Qc8 {[%clk 00:11:58]} {[%emt 00:01:52]} 21. Bxd4 {[%clk 00:05:30]}
{[%emt 00:00:09]} exd4 {[%clk 00:11:55]} {[%emt 00:00:09]} 22. Qb1 {[%clk
00:04:48]} {[%emt 00:00:47]} Nd7 {[%clk 00:11:25]} {[%emt 00:00:34]} 23. Nc1
{[%clk 00:04:44]} {[%emt 00:00:10]} Ne5 {[%clk 00:11:13]} {[%emt 00:00:17]} 24.
Be2 {[%clk 00:04:44]} {[%emt 00:00:05]} Qc6 {[%clk 00:10:25]} {[%emt 00:00:52]}
25. f3 {[%clk 00:04:06]} {[%emt 00:00:43]} Bh6 {[%clk 00:09:45]} {[%emt
00:00:45]} 26. f4 {[%clk 00:03:02]} {[%emt 00:01:09]} Ng4 {[%clk 00:09:15]}
{[%emt 00:00:35]} 27. Bxg4 {[%clk 00:03:04]} {[%emt 00:00:03]} hxg4 {[%clk
00:09:15]} {[%emt 00:00:05]} 28. Rde1 {[%clk 00:02:56]} {[%emt 00:00:13]} f5
{[%clk 00:09:19]} {[%emt 00:00:02]} 29. Nd3 {[%clk 00:02:42]} {[%emt 00:00:20]}
Rxe4 {[%clk 00:08:46]} {[%emt 00:00:37]} 30. Kh2 {[%clk 00:02:27]} {[%emt
00:00:19]} Bg7 {[%clk 00:08:24]} {[%emt 00:00:27]} 31. Rf2 {[%clk 00:02:03]}
{[%emt 00:00:30]} Rde8 {[%clk 00:08:25]} {[%emt 00:00:04]} 32. b4 {[%clk
00:01:09]} {[%emt 00:01:00]} b6 {[%clk 00:08:15]} {[%emt 00:00:15]} 33. bxc5
{[%clk 00:01:07]} {[%emt 00:00:06]} bxc5 {[%clk 00:07:58]} {[%emt 00:00:22]} 34.
Ne5 {[%clk 00:00:39]} {[%emt 00:00:33]} Bxe5 {[%clk 00:07:47]} {[%emt
00:00:15]} 35. fxe5 {[%clk 00:00:43]} {[%emt 00:00:01]} R8xe5 {[%clk 00:07:18]}
{[%emt 00:00:35]} 36. Rxe4 {[%clk 00:00:35]} {[%emt 00:00:13]} Qxe4 {[%clk
00:06:48]} {[%emt 00:00:35]} 37. Qb8+ {[%clk 00:00:39]} {[%emt 00:00:02]} Re8
{[%clk 00:06:39]} {[%emt 00:00:13]} 38. Qxa7 {[%clk 00:00:28]} {[%emt
00:00:15]} Qe1 {[%clk 00:06:05]} {[%emt 00:00:39]} 39. Rg2 {[%clk 00:00:20]}
{[%emt 00:00:13]} f4 {[%clk 00:04:40]} {[%emt 00:01:30]} 40. Qc7 {[%clk
00:00:00]} {[%emt 00:00:26]} 0-1

[Event "Open NK Rapid 2025 bord 26-50"]
[Site "Helmond, Netherlands"]
[Date "2025.05.03"]
[Round "8.5"]
[White "Kaufmann, Thomas"]
[Black "Neuwald, Johannes"]
[Result "1/2-1/2"]
[TimeControl "15 min +5 sec increment"]
[WhiteFideId "1084941"]
[BlackFideId "34683240"]
[WhiteElo "1939"]
[BlackElo "1839"]

1. e4 {[%clk 00:15:06]} {[%emt 00:00:04]} g6 {[%clk 00:15:09]} {[%emt
00:00:02]} 2. d4 {[%clk 00:15:09]} {[%emt 00:00:01]} Bg7 {[%clk 00:15:13]}
{[%emt 00:00:01]} 3. Nc3 {[%clk 00:15:13]} {[%emt 00:00:02]} d6 {[%clk
00:15:09]} {[%emt 00:00:09]} 4. Bg5 {[%clk 00:15:15]} {[%emt 00:00:02]} h6
{[%clk 00:15:13]} {[%emt 00:00:02]} 5. Be3 {[%clk 00:15:19]} Nd7 {[%clk
00:15:16]} {[%emt 00:00:02]} 6. Qd2 {[%clk 00:15:12]} {[%emt 00:00:11]} a6
{[%clk 00:15:20]} {[%emt 00:00:01]} 7. a4 {[%clk 00:15:12]} {[%emt 00:00:05]}
b6 {[%clk 00:15:14]} {[%emt 00:00:10]} 8. Bc4 {[%clk 00:14:55]} {[%emt
00:00:23]} e6 {[%clk 00:15:17]} {[%emt 00:00:02]} 9. Nge2 {[%clk 00:14:40]}
{[%emt 00:00:20]} Bb7 {[%clk 00:15:17]} {[%emt 00:00:05]} 10. Ng3 {[%clk
00:14:23]} {[%emt 00:00:22]} Ne7 {[%clk 00:15:12]} {[%emt 00:00:10]} 11. O-O
{[%clk 00:13:48]} {[%emt 00:00:40]} Nf6 {[%clk 00:14:53]} {[%emt 00:00:24]} 12.
f4 {[%clk 00:12:45]} {[%emt 00:01:07]} d5 {[%clk 00:13:21]} {[%emt 00:01:38]}
13. e5 {[%clk 00:12:00]} {[%emt 00:00:51]} dxc4 {[%clk 00:12:37]} {[%emt
00:00:49]} 14. exf6 {[%clk 00:12:00]} {[%emt 00:00:04]} Bxf6 {[%clk 00:12:40]}
{[%emt 00:00:02]} 15. Nce4 {[%clk 00:11:46]} {[%emt 00:00:18]} Bg7 {[%clk
00:12:44]} {[%emt 00:00:02]} 16. c3 {[%clk 00:11:42]} {[%emt 00:00:09]} Nf5
{[%clk 00:12:05]} {[%emt 00:00:44]} 17. Qe2 {[%clk 00:11:20]} {[%emt 00:00:27]}
Bd5 {[%clk 00:11:03]} {[%emt 00:01:08]} 18. Bf2 {[%clk 00:10:22]} {[%emt
00:01:02]} Nd6 {[%clk 00:10:30]} 19. Nxd6+ {[%clk 00:09:57]} {[%emt 00:01:08]}
cxd6 {[%clk 00:10:24]} {[%emt 00:00:11]} 20. Ne4 {[%clk 00:09:53]} {[%emt
00:00:09]} O-O {[%clk 00:10:00]} {[%emt 00:00:30]} 21. Bg3 {[%clk 00:09:33]}
{[%emt 00:00:25]} Bxe4 {[%clk 00:09:02]} {[%emt 00:01:02]} 22. Qxe4 {[%clk
00:09:36]} {[%emt 00:00:02]} d5 {[%clk 00:09:02]} {[%emt 00:00:05]} 23. Qe3
{[%clk 00:09:22]} {[%emt 00:00:19]} Qd7 {[%clk 00:08:54]} {[%emt 00:00:14]} 24.
Bh4 {[%clk 00:09:01]} {[%emt 00:00:25]} b5 {[%clk 00:08:20]} {[%emt 00:00:39]}
25. a5 {[%clk 00:08:42]} {[%emt 00:00:25]} Rab8 {[%clk 00:07:52]} {[%emt
00:00:32]} 26. Bg3 {[%clk 00:08:28]} {[%emt 00:00:18]} Rb7 {[%clk 00:07:38]}
{[%emt 00:00:20]} 27. Be1 {[%clk 00:08:12]} {[%emt 00:00:22]} Rfb8 {[%clk
00:07:26]} {[%emt 00:00:17]} 28. Bd2 {[%clk 00:08:00]} {[%emt 00:00:16]} Bf8
{[%clk 00:06:54]} {[%emt 00:00:37]} 29. Qh3 {[%clk 00:07:45]} {[%emt 00:00:20]}
f5 {[%clk 00:05:55]} {[%emt 00:01:04]} 30. g4 {[%clk 00:07:27]} {[%emt
00:00:23]} Qg7 {[%clk 00:05:30]} {[%emt 00:00:30]} 31. Rae1 {[%clk 00:07:14]}
{[%emt 00:00:18]} Re7 {[%clk 00:05:12]} {[%emt 00:00:23]} 32. Re2 {[%clk
00:06:51]} {[%emt 00:00:29]} Rbe8 {[%clk 00:04:42]} {[%emt 00:00:35]} 33. Rfe1
{[%clk 00:06:38]} {[%emt 00:00:17]} Qf6 {[%clk 00:03:53]} {[%emt 00:00:55]} 34.
Kh1 {[%clk 00:06:26]} {[%emt 00:00:17]} fxg4 {[%clk 00:03:37]} {[%emt
00:00:20]} 35. Qxg4 {[%clk 00:06:26]} {[%emt 00:00:05]} Qf5 {[%clk 00:03:38]}
{[%emt 00:00:04]} 36. Qg3 {[%clk 00:06:01]} {[%emt 00:00:30]} Bg7 {[%clk
00:03:24]} {[%emt 00:00:20]} 37. Rg2 {[%clk 00:05:36]} {[%emt 00:00:30]} Kh7
{[%clk 00:03:09]} {[%emt 00:00:19]} 38. Reg1 {[%clk 00:05:37]} {[%emt
00:00:03]} b4 {[%clk 00:02:38]} {[%emt 00:00:37]} 39. Qxg6+ {[%clk 00:05:14]}
{[%emt 00:00:28]} Qxg6 {[%clk 00:02:40]} {[%emt 00:00:04]} 40. Rxg6 {[%clk
00:05:16]} {[%emt 00:00:02]} bxc3 {[%clk 00:02:31]} {[%emt 00:00:14]} 41. Bxc3
{[%clk 00:04:49]} {[%emt 00:00:32]} Rf7 {[%clk 00:02:13]} {[%emt 00:00:23]} 42.
h3 {[%clk 00:04:30]} {[%emt 00:00:25]} Bh8 {[%clk 00:01:33]} {[%emt 00:00:45]}
43. R1g2 {[%clk 00:04:09]} {[%emt 00:00:26]} Rf6 {[%clk 00:01:18]} {[%emt
00:00:20]} 44. R6g4 {[%clk 00:03:54]} {[%emt 00:00:20]} Ref8 {[%clk 00:01:11]}
{[%emt 00:00:12]} 45. Re2 {[%clk 00:03:42]} {[%emt 00:00:17]} Rg8 {[%clk
00:01:04]} {[%emt 00:00:11]} 46. Kg2 {[%clk 00:03:24]} {[%emt 00:00:23]} Rxg4+
{[%clk 00:00:52]} {[%emt 00:00:18]} 47. hxg4 {[%clk 00:03:27]} {[%emt
00:00:01]} Kg6 {[%clk 00:00:55]} {[%emt 00:00:02]} 48. Kg3 {[%clk 00:03:23]}
{[%emt 00:00:09]} Kf7 {[%clk 00:00:50]} {[%emt 00:00:11]} 49. Rh2 {[%clk
00:03:21]} {[%emt 00:00:06]} Bg7 {[%clk 00:00:45]} {[%emt 00:00:10]} 50. Rh1
{[%clk 00:03:09]} {[%emt 00:00:17]} Bf8 {[%clk 00:00:48]} {[%emt 00:00:02]} 51.
g5 {[%clk 00:03:00]} {[%emt 00:00:14]} Rg6 {[%clk 00:00:42]} {[%emt 00:00:11]}
52. Kg4 {[%clk 00:02:53]} {[%emt 00:00:12]} hxg5 {[%clk 00:00:46]} 53. f5
{[%clk 00:02:45]} {[%emt 00:00:14]} exf5+ {[%clk 00:00:41]} {[%emt 00:00:10]}
54. Kxf5 {[%clk 00:02:48]} {[%emt 00:00:02]} Be7 {[%clk 00:00:31]} {[%emt
00:00:15]} 55. Rh7+ {[%clk 00:02:38]} {[%emt 00:00:14]} Rg7 {[%clk 00:00:32]}
{[%emt 00:00:04]} 56. Rxg7+ {[%clk 00:02:36]} {[%emt 00:00:07]} Kxg7 {[%clk
00:00:36]} 57. Ke5 {[%clk 00:02:36]} {[%emt 00:00:05]} Kf7 {[%clk 00:00:29]}
{[%emt 00:00:12]} 58. Kxd5 {[%clk 00:02:36]} {[%emt 00:00:06]} g4 {[%clk
00:00:31]} {[%emt 00:00:02]} 59. Be1 {[%clk 00:02:39]} {[%emt 00:00:02]} Kf6
{[%clk 00:00:33]} {[%emt 00:00:03]} 60. Bh4+ {[%clk 00:02:22]} {[%emt
00:00:22]} Kf7 {[%clk 00:00:26]} {[%emt 00:00:13]} 61. Bg3 {[%clk 00:02:20]}
{[%emt 00:00:07]} Bb4 {[%clk 00:00:26]} {[%emt 00:00:05]} 62. Kxc4 {[%clk
00:02:16]} {[%emt 00:00:09]} Bxa5 {[%clk 00:00:30]} {[%emt 00:00:01]} 63. Kc5
{[%clk 00:02:08]} {[%emt 00:00:13]} Ke7 {[%clk 00:00:28]} {[%emt 00:00:07]} 64.
Kd5 {[%clk 00:02:04]} {[%emt 00:00:09]} Kd7 {[%clk 00:00:22]} {[%emt 00:00:11]}
65. Ke4 {[%clk 00:02:04]} {[%emt 00:00:05]} Ke6 {[%clk 00:00:25]} {[%emt
00:00:02]} 66. d5+ {[%clk 00:02:03]} {[%emt 00:00:06]} Kf6 {[%clk 00:00:26]}
{[%emt 00:00:03]} 67. Kf4 {[%clk 00:02:04]} {[%emt 00:00:04]} Bc7+ {[%clk
00:00:26]} {[%emt 00:00:05]} 68. Kxg4 {[%clk 00:02:07]} {[%emt 00:00:02]} Bxg3
{[%clk 00:00:30]} {[%emt 00:00:01]} 69. Kxg3 {[%clk 00:02:10]} {[%emt
00:00:02]} Ke5 {[%clk 00:00:34]} {[%emt 00:00:01]} 70. d6 {[%clk 00:02:08]}
{[%emt 00:00:08]} Kxd6 {[%clk 00:00:38]} 71. Kf3 {[%clk 00:02:11]} {[%emt
00:00:01]} Kc5 {[%clk 00:00:39]} {[%emt 00:00:04]} 72. Ke3 {[%clk 00:02:02]}
{[%emt 00:00:14]} Kc4 {[%clk 00:00:43]} {[%emt 00:00:02]} 73. Kd2 {[%clk
00:02:06]} {[%emt 00:00:01]} Kb3 {[%clk 00:00:46]} {[%emt 00:00:02]} 74. Kc1
{[%clk 00:02:10]} 1/2-1/2

[Event "Open NK Rapid 2025 bord 26-50"]
[Site "Helmond, Netherlands"]
[Date "2025.05.03"]
[Round "8.6"]
[White "Frederiks, Jesse"]
[Black "Nies, Levi"]
[Result "0-1"]
[TimeControl "15 min +5 sec increment"]
[WhiteFideId "1095790"]
[BlackFideId "1061275"]
[WhiteElo "1937"]
[BlackElo "1828"]

1. d4 {[%clk 00:15:09]} {[%emt 00:00:01]} d5 {[%clk 00:15:08]} {[%emt
00:00:02]} 2. Nf3 {[%clk 00:15:12]} {[%emt 00:00:01]} Nf6 {[%clk 00:15:12]}
{[%emt 00:00:01]} 3. e3 {[%clk 00:15:16]} e6 {[%clk 00:15:04]} {[%emt
00:00:14]} 4. Bd3 {[%clk 00:15:17]} {[%emt 00:00:04]} Be7 {[%clk 00:15:06]}
{[%emt 00:00:03]} 5. Nbd2 {[%clk 00:15:11]} {[%emt 00:00:11]} b6 {[%clk
00:15:07]} {[%emt 00:00:05]} 6. c4 {[%clk 00:15:01]} {[%emt 00:00:15]} Bb7
{[%clk 00:15:09]} {[%emt 00:00:02]} 7. b3 {[%clk 00:15:02]} {[%emt 00:00:03]}
Nbd7 {[%clk 00:15:07]} {[%emt 00:00:08]} 8. Bb2 {[%clk 00:15:05]} {[%emt
00:00:02]} c5 {[%clk 00:15:00]} {[%emt 00:00:12]} 9. O-O {[%clk 00:14:53]}
{[%emt 00:00:16]} O-O {[%clk 00:15:01]} {[%emt 00:00:05]} 10. Ne5 {[%clk
00:14:39]} {[%emt 00:00:18]} cxd4 {[%clk 00:14:33]} {[%emt 00:00:34]} 11. Nxd7
{[%clk 00:14:11]} {[%emt 00:00:33]} Qxd7 {[%clk 00:13:52]} {[%emt 00:00:46]} 12.
Bxd4 {[%clk 00:14:09]} {[%emt 00:00:06]} Rfd8 {[%clk 00:13:22]} {[%emt
00:00:36]} 13. Qe2 {[%clk 00:13:52]} {[%emt 00:00:22]} e5 {[%clk 00:11:38]}
{[%emt 00:01:49]} 14. Bc3 {[%clk 00:13:01]} {[%emt 00:00:56]} dxc4 {[%clk
00:10:30]} {[%emt 00:01:13]} 15. Bxc4 {[%clk 00:13:01]} {[%emt 00:00:04]} Qc6
{[%clk 00:10:24]} {[%emt 00:00:11]} 16. Nf3 {[%clk 00:11:59]} {[%emt 00:01:08]}
b5 {[%clk 00:10:02]} {[%emt 00:00:27]} 17. Bxe5 {[%clk 00:10:30]} {[%emt
00:01:33]} bxc4 {[%clk 00:09:58]} {[%emt 00:00:10]} 18. Rac1 {[%clk 00:10:27]}
{[%emt 00:00:08]} Ba6 {[%clk 00:07:43]} {[%emt 00:02:20]} 19. Nd4 {[%clk
00:09:43]} {[%emt 00:00:48]} Qe4 {[%clk 00:07:16]} {[%emt 00:00:32]} 20. bxc4
{[%clk 00:08:39]} {[%emt 00:01:09]} Rac8 {[%clk 00:06:34]} {[%emt 00:00:48]} 21.
Bg3 {[%clk 00:08:29]} {[%emt 00:00:15]} Rxd4 {[%clk 00:06:08]} {[%emt
00:00:31]} 22. Qb2 {[%clk 00:07:23]} {[%emt 00:01:10]} Rdd8 {[%clk 00:06:01]}
{[%emt 00:00:13]} 23. c5 {[%clk 00:07:08]} {[%emt 00:00:20]} Bxf1 {[%clk
00:05:57]} {[%emt 00:00:08]} 24. Kxf1 {[%clk 00:06:39]} {[%emt 00:00:34]} Qd3+
{[%clk 00:05:57]} {[%emt 00:00:06]} 0-1

[Event "Open NK Rapid 2025 bord 26-50"]
[Site "Helmond, Netherlands"]
[Date "2025.05.03"]
[Round "8.7"]
[White "Leenen, Boyd"]
[Black "Ruzaykyn, Oleksandr"]
[Result "1-0"]
[TimeControl "15 min +5 sec increment"]
[WhiteFideId "1083937"]
[BlackFideId "1058134"]
[WhiteElo "1931"]
[BlackElo "1827"]

1. d4 {[%clk 00:15:09]} {[%emt 00:00:01]} Nf6 {[%clk 00:15:04]} {[%emt
00:00:06]} 2. c4 {[%clk 00:15:12]} {[%emt 00:00:02]} e6 {[%clk 00:14:47]}
{[%emt 00:00:23]} 3. Nc3 {[%clk 00:15:13]} {[%emt 00:00:02]} d5 {[%clk
00:13:59]} {[%emt 00:00:53]} 4. cxd5 {[%clk 00:15:15]} {[%emt 00:00:03]} exd5
{[%clk 00:14:03]} {[%emt 00:00:02]} 5. Bg5 {[%clk 00:15:18]} {[%emt 00:00:02]}
Nbd7 {[%clk 00:13:34]} {[%emt 00:00:34]} 6. e3 {[%clk 00:15:16]} {[%emt
00:00:07]} c6 {[%clk 00:13:20]} {[%emt 00:00:20]} 7. Bd3 {[%clk 00:15:14]}
{[%emt 00:00:05]} Be7 {[%clk 00:12:56]} {[%emt 00:00:29]} 8. Nge2 {[%clk
00:14:29]} {[%emt 00:00:50]} O-O {[%clk 00:12:20]} {[%emt 00:00:42]} 9. f3
{[%clk 00:14:03]} {[%emt 00:00:31]} Nh5 {[%clk 00:10:04]} {[%emt 00:02:21]} 10.
Bxe7 {[%clk 00:12:49]} {[%emt 00:01:20]} Qxe7 {[%clk 00:10:07]} {[%emt
00:00:02]} 11. Qd2 {[%clk 00:12:34]} {[%emt 00:00:19]} Re8 {[%clk 00:09:06]}
{[%emt 00:01:06]} 12. e4 {[%clk 00:12:34]} {[%emt 00:00:05]} dxe4 {[%clk
00:06:17]} {[%emt 00:02:55]} 13. fxe4 {[%clk 00:12:31]} {[%emt 00:00:07]} b5
{[%clk 00:05:46]} {[%emt 00:00:37]} 14. a3 {[%clk 00:12:06]} {[%emt 00:00:29]}
Bb7 {[%clk 00:05:20]} {[%emt 00:00:32]} 15. O-O {[%clk 00:12:05]} {[%emt
00:00:05]} g6 {[%clk 00:03:34]} {[%emt 00:01:51]} 16. Rae1 {[%clk 00:11:42]}
{[%emt 00:00:27]} Rad8 {[%clk 00:03:30]} {[%emt 00:00:10]} 17. Kh1 {[%clk
00:11:37]} {[%emt 00:00:09]} Nf8 {[%clk 00:03:10]} {[%emt 00:00:26]} 18. e5
{[%clk 00:10:55]} {[%emt 00:00:47]} Ne6 {[%clk 00:02:39]} {[%emt 00:00:36]} 19.
Bb1 {[%clk 00:10:11]} {[%emt 00:00:48]} Qh4 {[%clk 00:02:23]} {[%emt 00:00:22]}
20. Ne4 {[%clk 00:09:54]} {[%emt 00:00:22]} c5 {[%clk 00:01:34]} {[%emt
00:00:54]} 21. Nd6 {[%clk 00:08:47]} {[%emt 00:01:12]} Rxd6 {[%clk 00:01:20]}
{[%emt 00:00:19]} 22. exd6 {[%clk 00:08:42]} {[%emt 00:00:11]} Nxd4 {[%clk
00:00:29]} {[%emt 00:00:55]} 23. Nxd4 {[%clk 00:08:31]} {[%emt 00:00:16]} Rxe1
{[%clk 00:00:27]} {[%emt 00:00:07]} 24. Qxe1 {[%clk 00:08:28]} {[%emt
00:00:08]} Qxd4 {[%clk 00:00:12]} {[%emt 00:00:20]} 25. Qe8+ {[%clk 00:08:29]}
{[%emt 00:00:04]} Kg7 {[%clk 00:00:16]} 26. Qxf7+ {[%clk 00:08:33]} {[%emt
00:00:01]} Kh6 {[%clk 00:00:21]} 27. Qxb7 {[%clk 00:08:30]} {[%emt 00:00:08]}
Qxd6 {[%clk 00:00:11]} {[%emt 00:00:15]} 28. Qf3 {[%clk 00:08:29]} {[%emt
00:00:05]} Qd2 {[%clk 00:00:12]} {[%emt 00:00:04]} 29. Qf8+ {[%clk 00:08:29]}
{[%emt 00:00:05]} Kg5 {[%clk 00:00:15]} {[%emt 00:00:02]} 30. Qxc5+ {[%clk
00:07:57]} {[%emt 00:00:37]} Kh6 {[%clk 00:00:19]} 31. Qc1 {[%clk 00:08:00]}
{[%emt 00:00:02]} 1-0